[Event "23rd European Team Chess Championship 2"]
[Site "Catez, Slovenia"]
[Date "2021.11.13"]
[Round "2.1"]
[White "Toczek, Grzegorz"]
[Black "Giri, Anish"]
[Result "0-1"]
[WhiteElo "2296"]
[BlackElo "2774"]
[PlyCount "52"]
[EventDate "2021.11.12"]
[EventRounds "9"]
[WhiteTeam "Wales"]
[BlackTeam "Netherlands"]
[WhiteTeamCountry "WLS"]
[BlackTeamCountry "NED"]
[TimeControl "6000+1385"]
[WhiteClock "0:07:13"]
[BlackClock "0:27:59"]

1. e4 {[%emt 0:00:04]} c6 {[%emt 0:00:37]} 2. d4 {[%emt 0:00:36]} d5 {[%emt 0:
00:05]} 3. Nc3 {[%emt 0:01:13]} dxe4 {[%emt 0:00:57]} 4. Nxe4 {[%emt 0:00:05]}
Nf6 {[%emt 0:00:47]} 5. Nxf6+ {[%emt 0:00:30]} exf6 {[%emt 0:00:07]} 6. c3 {
[%emt 0:01:16]} Bd6 {[%emt 0:00:32]} 7. Bd3 {[%emt 0:00:09]} O-O {[%emt 0:00:
33]} 8. Qc2 {[%emt 0:00:03]} Re8+ {[%emt 0:00:56]} 9. Ne2 {[%emt 0:00:55]} h5 {
[%emt 0:00:23]} 10. Be3 {[%emt 0:05:47]} Nd7 {[%emt 0:02:15]} 11. O-O-O {[%emt
0:01:17]} b5 {[%emt 0:00:05]} 12. Ng3 {[%emt 0:07:32]} Nb6 {[%emt 0:02:00]} 13.
Kb1 {[%emt 0:13:45]} Nd5 {[%emt 0:01:55]} 14. Bc1 {[%emt 0:00:34]} Rb8 {[%emt
0:11:19]} 15. Rde1 {[%emt 0:22:03]} b4 {[%emt 0:09:30]} 16. Rxe8+ Qxe8 {[%emt
0:04:41]} 17. Ne4 {[%emt 0:00:13]} Bc7 {[%emt 0:23:34]} 18. Re1 {[%emt 0:04:13]
} Qd8 {[%emt 0:01:47]} 19. Qe2 {[%emt 0:00:38]} bxc3 {[%emt 0:01:59]} 20. Qxh5
{[%emt 0:05:30]} cxb2 {[%emt 0:06:27]} 21. Bd2 {[%emt 0:02:17]} g6 {[%emt 0:00:
06]} 22. Qf3 {[%emt 0:13:13]} Ba5 {[%emt 0:01:45]} 23. Bc2 {[%emt 0:09:10]}
Bxd2 {[%emt 0:06:38]} 24. Nxd2 {[%emt 0:00:01]} Qa5 {[%emt 0:00:33]} 25. Re8+ {
[%emt 0:00:21]} Kg7 {[%emt 0:00:03]} 26. Nb3 {[%emt 0:00:27]} Qa3 {[%emt 0:00:
20]} 0-1

[Event "23rd European Team Chess Championship 2"]
[Site "Catez, Slovenia"]
[Date "2021.11.13"]
[Round "2.3"]
[White "Garcia, Jason"]
[Black "Van Foreest, Jorden"]
[Result "0-1"]
[WhiteElo "2028"]
[BlackElo "2701"]
[PlyCount "104"]
[EventDate "2021.11.12"]
[EventRounds "9"]
[WhiteTeam "Wales"]
[BlackTeam "Netherlands"]
[WhiteTeamCountry "WLS"]
[BlackTeamCountry "NED"]
[TimeControl "6000+615"]
[WhiteClock "0:04:11"]
[BlackClock "0:52:55"]

1. Nf3 {[%emt 0:00:02]} d5 {[%emt 0:00:12]} 2. g3 {[%emt 0:00:09]} Nd7 {[%emt
0:00:29]} 3. d4 {[%emt 0:00:46]} Nb6 {[%emt 0:00:30]} 4. Bg2 {[%emt 0:00:25]}
Bf5 {[%emt 0:00:47]} 5. Nbd2 {[%emt 0:04:22]} Nf6 {[%emt 0:03:03]} 6. O-O {
[%emt 0:05:25]} e6 {[%emt 0:01:20]} 7. c4 {[%emt 0:06:54]} c6 {[%emt 0:03:27]}
8. b3 {[%emt 0:08:08]} Be7 {[%emt 0:04:38]} 9. Bb2 {[%emt 0:01:35]} h5 {[%emt
0:04:05]} 10. Re1 {[%emt 0:04:20]} Ne4 {[%emt 0:01:25]} 11. Nxe4 {[%emt 0:08:
42]} Bxe4 {[%emt 0:00:07]} 12. Nd2 {[%emt 0:02:10]} Bxg2 {[%emt 0:03:08]} 13.
Kxg2 {[%emt 0:00:36]} dxc4 {[%emt 0:00:45]} 14. Nxc4 {[%emt 0:05:56]} Bb4 {
[%emt 0:00:08]} 15. Nd2 {[%emt 0:02:43]} h4 {[%emt 0:00:54]} 16. a3 {[%emt 0:
02:57]} Bxd2 {[%emt 0:01:31]} 17. Qxd2 {[%emt 0:00:10]} Qd5+ {[%emt 0:00:22]}
18. e4 {[%emt 0:01:39]} Qxb3 {[%emt 0:02:18]} 19. Qc3 {[%emt 0:02:47]} Qb5 {
[%emt 0:02:01]} 20. Rab1 {[%emt 0:10:44]} O-O-O {[%emt 0:05:36]} 21. Qc5 {
[%emt 0:04:47]} Qxc5 {[%emt 0:01:31]} 22. dxc5 {[%emt 0:00:05]} Nc4 {[%emt 0:
01:01]} 23. Bxg7 {[%emt 0:01:09]} h3+ {[%emt 0:00:12]} 24. Kg1 {[%emt 0:00:44]}
Rh5 {[%emt 0:00:04]} 25. Rb3 {[%emt 0:06:47]} Nd2 {[%emt 0:06:36]} 26. Rbe3 {
[%emt 0:00:49]} Rxc5 {[%emt 0:00:08]} 27. Bf6 {[%emt 0:00:35]} Rg8 {[%emt 0:00:
04]} 28. f4 {[%emt 0:06:21]} Rc2 {[%emt 0:01:03]} 29. e5 {[%emt 0:07:32]} c5 {
[%emt 0:00:28]} 30. Bg5 {[%emt 0:00:10]} Nc4 {[%emt 0:03:46]} 31. Rd3 {[%emt 0:
00:32]} Nb2 {[%emt 0:00:47]} 32. Rde3 {[%emt 0:01:10]} c4 {[%emt 0:00:05]} 33.
g4 {[%emt 0:00:14]} Nd3 {[%emt 0:00:13]} 34. Rf1 {[%emt 0:01:03]} Rg2+ {[%emt
0:00:55]} 35. Kh1 {[%emt 0:00:01]} Nf2+ {[%emt 0:00:58]} 36. Rxf2 {[%emt 0:00:
02]} Rxf2 {[%emt 0:00:06]} 37. Rxh3 {[%emt 0:00:06]} b5 {[%emt 0:00:30]} 38.
Rc3 {[%emt 0:00:30]} Kd7 {[%emt 0:00:56]} 39. h4 {[%emt 0:00:08]} a5 {[%emt 0:
00:24]} 40. a4 {[%emt 0:00:14]} b4 {[%emt 0:00:58]} 41. Rxc4 {[%emt 0:00:14]}
Rc8 {[%emt 0:02:45]} 42. Rd4+ {[%emt 0:01:31]} Ke8 {[%emt 0:00:05]} 43. Rd1 {
[%emt 0:00:14]} b3 {[%emt 0:00:08]} 44. h5 {[%emt 0:00:36]} b2 {[%emt 0:00:07]}
45. f5 {[%emt 0:00:06]} Rfc2 {[%emt 0:02:00]} 46. h6 {[%emt 0:02:48]} Rc1 {
[%emt 0:00:08]} 47. Bxc1 {[%emt 0:01:54]} Rxc1 {[%emt 0:00:06]} 48. h7 {[%emt
0:00:13]} Rxd1+ {[%emt 0:00:04]} 49. Kg2 {[%emt 0:00:04]} Rh1 {[%emt 0:00:03]}
50. Kxh1 {[%emt 0:00:24]} b1=Q+ {[%emt 0:00:08]} 51. Kg2 {[%emt 0:00:22]} Qe4+
{[%emt 0:00:08]} 52. Kf2 {[%emt 0:00:35]} Qxe5 {[%emt 0:00:08]} 0-1